[Event "*** Titled Tuesday Blitz"]
[Site "Chess.com"]
[Date "2021.02.02"]
[Round "4"]
[White "Alexchess1984"]
[Black "Man-Chuk"]
[Result "0-1"]
[WhiteElo "2680"]
[BlackElo "2925"]
[TimeControl "180+1"]
[EndTime "10:42:52 PST"]
[Termination "Man-Chuk won by resignation"]

1. e4 {[%clk 0:03:00.9]} 1... c5 {[%clk 0:02:55.3]} 2. c3 {[%clk 0:03:00.4]}
2... d5 {[%clk 0:02:51.6]} 3. exd5 {[%clk 0:03:00.6]} 3... Qxd5 {[%clk
0:02:51.3]} 4. d4 {[%clk 0:03:01.5]} 4... Nf6 {[%clk 0:02:50]} 5. Nf3 {[%clk
0:03:00.8]} 5... e6 {[%clk 0:02:49.3]} 6. a3 {[%clk 0:02:58]} 6... Nc6 {[%clk
0:02:46.3]} 7. Be3 {[%clk 0:02:57.4]} 7... cxd4 {[%clk 0:02:43.7]} 8. cxd4
{[%clk 0:02:58.3]} 8... Be7 {[%clk 0:02:40.3]} 9. Nc3 {[%clk 0:02:58.7]} 9...
Qd6 {[%clk 0:02:40.2]} 10. Bc4 {[%clk 0:02:57.5]} 10... O-O {[%clk 0:02:37.9]}
11. Qd3 {[%clk 0:02:57]} 11... b6 {[%clk 0:02:27]} 12. Rd1 {[%clk 0:02:57.4]}
12... Bb7 {[%clk 0:02:23.3]} 13. Ba2 {[%clk 0:02:57.2]} 13... Rad8 {[%clk
0:02:18.4]} 14. O-O {[%clk 0:02:55.8]} 14... Rfe8 {[%clk 0:01:58.6]} 15. h3
{[%clk 0:02:48.9]} 15... Bf8 {[%clk 0:01:49.1]} 16. Bg5 {[%clk 0:02:44.1]} 16...
Be7 {[%clk 0:01:41.5]} 17. Bb1 {[%clk 0:02:36.9]} 17... g6 {[%clk 0:01:41.4]}
18. Rfe1 {[%clk 0:02:33.5]} 18... Nd5 {[%clk 0:01:19.6]} 19. Ne4 {[%clk
0:02:30.6]} 19... Qc7 {[%clk 0:01:19.8]} 20. Ba2 {[%clk 0:02:26.2]} 20... Kg7
{[%clk 0:01:10.5]} 21. Qd2 {[%clk 0:02:24.9]} 21... Bxg5 {[%clk 0:01:10.1]} 22.
Nexg5 {[%clk 0:02:16.5]} 22... Qf4 {[%clk 0:00:58.3]} 23. Qe2 {[%clk 0:02:04.8]}
23... Nf6 {[%clk 0:00:49.2]} 24. g3 {[%clk 0:01:43.1]} 24... Qf5 {[%clk
0:00:49]} 25. Bb1 {[%clk 0:01:40.6]} 25... Qd5 {[%clk 0:00:48]} 26. Ne4 {[%clk
0:01:36.5]} 26... Ne7 {[%clk 0:00:33.6]} 27. Nfg5 {[%clk 0:01:25.3]} 27... Nxe4
{[%clk 0:00:31]} 28. Bxe4 {[%clk 0:01:18.8]} 28... Qxg5 {[%clk 0:00:31.2]} 29.
Bxb7 {[%clk 0:01:18.9]} 29... Rd7 {[%clk 0:00:29.1]} 30. h4 {[%clk 0:01:12]}
30... Qf6 {[%clk 0:00:28.1]} 31. Bg2 {[%clk 0:01:08.1]} 31... Rxd4 {[%clk
0:00:26.1]} 32. Rxd4 {[%clk 0:01:03.3]} 32... Qxd4 {[%clk 0:00:27]} 33. Rd1
{[%clk 0:01:03.7]} 33... Qf6 {[%clk 0:00:26.8]} 34. Rd7 {[%clk 0:01:03.6]} 34...
a5 {[%clk 0:00:26.2]} 35. Qb5 {[%clk 0:00:58]} 35... Rc8 {[%clk 0:00:19.1]} 36.
Qxb6 {[%clk 0:00:52.4]} 36... Rc1+ {[%clk 0:00:19.6]} 37. Kh2 {[%clk 0:00:52.2]}
37... Rc2 {[%clk 0:00:19.9]} 38. b4 {[%clk 0:00:44.7]} 38... axb4 {[%clk
0:00:19.3]} 39. axb4 {[%clk 0:00:45.1]} 39... Nf5 {[%clk 0:00:18.1]} 40. b5
{[%clk 0:00:33.9]} 40... Nxh4 {[%clk 0:00:15.1]} 41. gxh4 {[%clk 0:00:16]} 41...
Qxh4+ {[%clk 0:00:14.9]} 42. Kg1 {[%clk 0:00:16.3]} 42... Rc1+ {[%clk
0:00:14.5]} 43. Bf1 {[%clk 0:00:16.8]} 43... Qg5+ {[%clk 0:00:07.2]} 44. Kh2
{[%clk 0:00:16.3]} 44... Rxf1 {[%clk 0:00:07.8]} 45. Qd4+ {[%clk 0:00:15.6]}
45... e5 {[%clk 0:00:08.3]} 46. Qe3 {[%clk 0:00:14.2]} 46... Qg1+ {[%clk
0:00:06.2]} 47. Kh3 {[%clk 0:00:14.6]} 47... Qh1+ {[%clk 0:00:05.8]} 48. Kg4
{[%clk 0:00:12]} 48... Rg1+ {[%clk 0:00:05.9]} 49. Qg3 {[%clk 0:00:12.3]} 49...
Rxg3+ {[%clk 0:00:05.4]} 50. Kxg3 {[%clk 0:00:13]} 50... Qg1+ {[%clk 0:00:04.8]}
51. Kf3 {[%clk 0:00:12.5]} 51... e4+ {[%clk 0:00:03.8]} 52. Kxe4 {[%clk
0:00:12.3]} 52... Qb1+ {[%clk 0:00:03.8]} 53. Kd4 {[%clk 0:00:10.8]} 53... Qxb5
{[%clk 0:00:04.7]} 54. Rd5 {[%clk 0:00:11.1]} 54... Qxd5+ {[%clk 0:00:04.7]} 55.
Kxd5 {[%clk 0:00:12]} 55... Kf6 {[%clk 0:00:05.6]} 56. Ke4 {[%clk 0:00:12.2]}
56... h5 {[%clk 0:00:05.9]} 57. Kf4 {[%clk 0:00:12.2]} 57... g5+ {[%clk
0:00:06.1]} 0-1

[Event "*** Titled Tuesday Blitz"]
[Site "Chess.com"]
[Date "2021.02.02"]
[Round "4"]
[White "Kaua18"]
[Black "MuhittinBuker"]
[Result "1-0"]
[WhiteElo "2398"]
[BlackElo "2141"]
[TimeControl "180+1"]
[EndTime "10:42:52 PST"]
[Termination "Kaua18 won on time"]

1. Nf3 {[%clk 0:03:00.7]} 1... Nf6 {[%clk 0:02:58.8]} 2. b3 {[%clk 0:02:59.7]}
2... d5 {[%clk 0:02:58.4]} 3. Bb2 {[%clk 0:02:59.9]} 3... Bg4 {[%clk 0:02:56.5]}
4. Ne5 {[%clk 0:02:59.4]} 4... Bh5 {[%clk 0:02:53.4]} 5. d4 {[%clk 0:02:53.3]}
5... Nbd7 {[%clk 0:02:52]} 6. Nd2 {[%clk 0:02:51.8]} 6... e6 {[%clk 0:02:51.3]}
7. Ndf3 {[%clk 0:02:47]} 7... Bd6 {[%clk 0:02:49.4]} 8. e3 {[%clk 0:02:42.8]}
8... O-O {[%clk 0:02:47.9]} 9. Be2 {[%clk 0:02:41]} 9... c5 {[%clk 0:02:44.5]}
10. O-O {[%clk 0:02:40.1]} 10... Qc7 {[%clk 0:02:39.9]} 11. c4 {[%clk
0:02:33.3]} 11... cxd4 {[%clk 0:02:30.5]} 12. exd4 {[%clk 0:02:29.9]} 12... Bxf3
{[%clk 0:02:27.5]} 13. Nxf3 {[%clk 0:02:25.6]} 13... Rac8 {[%clk 0:02:24.8]} 14.
g3 {[%clk 0:02:23.5]} 14... Ne4 {[%clk 0:02:22.3]} 15. Nd2 {[%clk 0:02:20.4]}
15... f5 {[%clk 0:02:19.7]} 16. c5 {[%clk 0:02:20.4]} 16... Bxg3 {[%clk
0:02:12.5]} 17. fxg3 {[%clk 0:02:08.9]} 17... Nxg3 {[%clk 0:02:10.7]} 18. Rf2
{[%clk 0:02:06.8]} 18... Nxe2+ {[%clk 0:02:08.5]} 19. Qxe2 {[%clk 0:02:07]}
19... Rce8 {[%clk 0:02:04.5]} 20. Nf3 {[%clk 0:02:06.3]} 20... Nf6 {[%clk
0:02:02.5]} 21. Ne5 {[%clk 0:02:05.5]} 21... Ne4 {[%clk 0:02:01.1]} 22. Rg2
{[%clk 0:02:05]} 22... Qe7 {[%clk 0:01:58.7]} 23. Rf1 {[%clk 0:01:57.8]} 23...
Kh8 {[%clk 0:01:56.7]} 24. b4 {[%clk 0:01:55.8]} 24... g5 {[%clk 0:01:50.2]} 25.
b5 {[%clk 0:01:55.4]} 25... Rg8 {[%clk 0:01:48.1]} 26. a4 {[%clk 0:01:53.5]}
26... g4 {[%clk 0:01:46.5]} 27. Ba3 {[%clk 0:01:50.4]} 27... Rg7 {[%clk
0:01:40.1]} 28. Qe3 {[%clk 0:01:48]} 28... Reg8 {[%clk 0:01:36.2]} 29. c6 {[%clk
0:01:47.9]} 29... Qh4 {[%clk 0:01:33.6]} 30. cxb7 {[%clk 0:01:43.1]} 30... Rxb7
{[%clk 0:01:30.7]} 31. Rc1 {[%clk 0:01:32.1]} 31... Rbg7 {[%clk 0:01:27.5]} 32.
a5 {[%clk 0:01:26.6]} 32... g3 {[%clk 0:01:24.7]} 33. hxg3 {[%clk 0:01:01.1]}
33... Nxg3 {[%clk 0:01:22]} 34. Nf3 {[%clk 0:00:38.2]} 34... Qh1+ {[%clk
0:00:55]} 35. Kf2 {[%clk 0:00:38.3]} 35... Ne4+ {[%clk 0:00:53.9]} 36. Ke2
{[%clk 0:00:38.6]} 36... Rxg2+ {[%clk 0:00:51.2]} 37. Kd3 {[%clk 0:00:38.8]}
37... Qh3 {[%clk 0:00:39.9]} 38. b6 {[%clk 0:00:30.4]} 38... R2g3 {[%clk
0:00:19.1]} 39. Ke2 {[%clk 0:00:23.1]} 39... Qg2+ {[%clk 0:00:15.7]} 40. Ke1
{[%clk 0:00:12.8]} 40... Rxf3 {[%clk 0:00:14.1]} 41. Qe2 {[%clk 0:00:12.8]}
41... Qg1+ {[%clk 0:00:11.7]} 42. Qf1 {[%clk 0:00:12.6]} 42... Qxd4 {[%clk
0:00:10.7]} 43. Qxf3 {[%clk 0:00:08.6]} 43... Qd2+ {[%clk 0:00:08.9]} 44. Kf1
{[%clk 0:00:09.1]} 44... Ng3+ {[%clk 0:00:07.7]} 45. Kg1 {[%clk 0:00:03.6]}
45... Ne2+ {[%clk 0:00:04.7]} 46. Kf1 {[%clk 0:00:02.4]} 46... Nxc1 {[%clk
0:00:02.2]} 47. b7 {[%clk 0:00:02]} 1-0

[Event "*** Titled Tuesday Blitz"]
[Site "Chess.com"]
[Date "2021.02.02"]
[Round "4"]
[White "Vugar_Manafov"]
[Black "anasta10"]
[Result "1-0"]
[WhiteElo "2662"]
[BlackElo "2489"]
[TimeControl "180+1"]
[EndTime "10:42:53 PST"]
[Termination "Vugar_Manafov won by resignation"]

1. Nf3 {[%clk 0:03:00.9]} 1... Nf6 {[%clk 0:02:58]} 2. g3 {[%clk 0:03:01.1]}
2... g6 {[%clk 0:02:56.8]} 3. b3 {[%clk 0:03:01.1]} 3... Bg7 {[%clk 0:02:57]} 4.
Bb2 {[%clk 0:03:01.3]} 4... O-O {[%clk 0:02:57.3]} 5. Bg2 {[%clk 0:03:01.4]}
5... d5 {[%clk 0:02:52.9]} 6. c4 {[%clk 0:03:00.9]} 6... dxc4 {[%clk 0:02:47.1]}
7. bxc4 {[%clk 0:03:00]} 7... c5 {[%clk 0:02:47.7]} 8. O-O {[%clk 0:02:59.7]}
8... Nc6 {[%clk 0:02:48.1]} 9. d3 {[%clk 0:02:59.9]} 9... Qc7 {[%clk 0:02:44.4]}
10. Nc3 {[%clk 0:02:59.7]} 10... a6 {[%clk 0:02:42.6]} 11. Rb1 {[%clk
0:02:53.9]} 11... Bg4 {[%clk 0:02:40.4]} 12. Na4 {[%clk 0:02:49.2]} 12... b5
{[%clk 0:02:05.8]} 13. cxb5 {[%clk 0:02:24.2]} 13... axb5 {[%clk 0:02:04.4]} 14.
Nxc5 {[%clk 0:02:24.7]} 14... Rxa2 {[%clk 0:01:59.2]} 15. Qb3 {[%clk 0:02:23.5]}
15... Ra5 {[%clk 0:01:58.9]} 16. Rfc1 {[%clk 0:02:21.9]} 16... Qb6 {[%clk
0:01:45]} 17. h3 {[%clk 0:02:11]} 17... Bxf3 {[%clk 0:01:20.1]} 18. Bxf3 {[%clk
0:02:11.9]} 18... Rd8 {[%clk 0:01:14.1]} 19. Ne6 {[%clk 0:02:02.2]} 19... Rd6
{[%clk 0:00:58.3]} 20. Nxg7 {[%clk 0:01:56.8]} 20... Kxg7 {[%clk 0:00:59.2]} 21.
Bc3 {[%clk 0:01:43.5]} 21... b4 {[%clk 0:00:57]} 22. Bxf6+ {[%clk 0:01:19.4]}
22... Rxf6 {[%clk 0:00:54.9]} 23. Bxc6 {[%clk 0:01:20]} 23... Rxc6 {[%clk
0:00:55.1]} 24. Rxc6 {[%clk 0:01:20.9]} 24... Qxc6 {[%clk 0:00:55.1]} 25. Qxb4
{[%clk 0:01:21.8]} 25... Ra2 {[%clk 0:00:53.8]} 26. Qd4+ {[%clk 0:01:14.1]}
26... Qf6 {[%clk 0:00:52.6]} 27. Qxf6+ {[%clk 0:01:10.9]} 27... Kxf6 {[%clk
0:00:53.5]} 28. Kf1 {[%clk 0:01:11.3]} 28... e6 {[%clk 0:00:53.1]} 29. Rb4
{[%clk 0:01:09.7]} 29... h5 {[%clk 0:00:53.3]} 30. g4 {[%clk 0:01:09.1]} 30...
hxg4 {[%clk 0:00:53.1]} 31. hxg4 {[%clk 0:01:10]} 31... Kg5 {[%clk 0:00:53.5]}
32. e3 {[%clk 0:01:06.4]} 32... f5 {[%clk 0:00:51.8]} 33. gxf5 {[%clk
0:01:06.2]} 33... exf5 {[%clk 0:00:52.7]} 34. d4 {[%clk 0:01:06.4]} 34... f4
{[%clk 0:00:41.4]} 35. d5 {[%clk 0:00:50.5]} 35... fxe3 {[%clk 0:00:40]} 36.
fxe3 {[%clk 0:00:51.4]} 36... Kf5 {[%clk 0:00:34.1]} 37. Ke1 {[%clk 0:00:16.4]}
37... Ke5 {[%clk 0:00:20.5]} 38. Rb5 {[%clk 0:00:12.6]} 38... g5 {[%clk
0:00:19.7]} 39. d6+ {[%clk 0:00:12.2]} 39... Kxd6 {[%clk 0:00:19.6]} 40. Rxg5
{[%clk 0:00:13.1]} 40... Ke6 {[%clk 0:00:20]} 41. Rb5 {[%clk 0:00:12.8]} 41...
Kd6 {[%clk 0:00:19.7]} 42. Rb4 {[%clk 0:00:13.2]} 42... Ke5 {[%clk 0:00:18.7]}
43. Rd4 {[%clk 0:00:13.1]} 43... Rb2 {[%clk 0:00:17.9]} 44. Rd2 {[%clk
0:00:12.9]} 44... Rb4 {[%clk 0:00:16.8]} 45. Ke2 {[%clk 0:00:12.7]} 45... Ke4
{[%clk 0:00:16.7]} 46. Ra2 {[%clk 0:00:11.3]} 46... Rc4 {[%clk 0:00:16.3]} 47.
Rb2 {[%clk 0:00:11.5]} 47... Ra4 {[%clk 0:00:16]} 48. Rc2 {[%clk 0:00:11.8]}
48... Rb4 {[%clk 0:00:15.9]} 49. Kd2 {[%clk 0:00:12.1]} 49... Ra4 {[%clk
0:00:15.7]} 50. Rb2 {[%clk 0:00:12.5]} 50... Rc4 {[%clk 0:00:15.2]} 51. Rb8
{[%clk 0:00:13]} 51... Ra4 {[%clk 0:00:15]} 52. Re8+ {[%clk 0:00:13]} 52... Kd5
{[%clk 0:00:14.7]} 53. Ke2 {[%clk 0:00:11.8]} 53... Rh4 {[%clk 0:00:09]} 54. Kf3
{[%clk 0:00:09.4]} 54... Rh3+ {[%clk 0:00:08.5]} 55. Kg4 {[%clk 0:00:09.6]}
55... Rh4+ {[%clk 0:00:08.8]} 56. Kxh4 {[%clk 0:00:09.7]} 1-0

[Event "*** Titled Tuesday Blitz"]
[Site "Chess.com"]
[Date "2021.02.02"]
[Round "4"]
[White "Michaelson_11"]
[Black "MrChampion_Coach"]
[Result "1-0"]
[WhiteElo "2275"]
[BlackElo "2427"]
[TimeControl "180+1"]
[EndTime "10:42:53 PST"]
[Termination "Michaelson_11 won on time"]

1. e4 {[%clk 0:03:00.9]} 1... c5 {[%clk 0:02:59.7]} 2. Nf3 {[%clk 0:03:00.1]}
2... d6 {[%clk 0:02:59.6]} 3. d4 {[%clk 0:03:00.4]} 3... cxd4 {[%clk 0:03:00.5]}
4. Nxd4 {[%clk 0:03:01]} 4... Nf6 {[%clk 0:03:00.7]} 5. Nc3 {[%clk 0:03:01.4]}
5... a6 {[%clk 0:03:01]} 6. Nb3 {[%clk 0:03:01.2]} 6... g6 {[%clk 0:02:53.7]} 7.
Be3 {[%clk 0:02:56.3]} 7... Bg7 {[%clk 0:02:52.6]} 8. Be2 {[%clk 0:02:49.3]}
8... O-O {[%clk 0:02:52]} 9. g4 {[%clk 0:02:48.3]} 9... b5 {[%clk 0:02:47.8]}
10. g5 {[%clk 0:02:41.6]} 10... Nfd7 {[%clk 0:02:44.5]} 11. a3 {[%clk
0:02:26.7]} 11... Ne5 {[%clk 0:02:10.5]} 12. f4 {[%clk 0:02:20.5]} 12... Nc4
{[%clk 0:02:09.3]} 13. Bxc4 {[%clk 0:02:14.8]} 13... bxc4 {[%clk 0:02:10.2]} 14.
Nd4 {[%clk 0:02:03.5]} 14... Bb7 {[%clk 0:01:34]} 15. Qe2 {[%clk 0:01:54.2]}
15... e5 {[%clk 0:01:29.6]} 16. fxe5 {[%clk 0:01:40.4]} 16... dxe5 {[%clk
0:01:30.5]} 17. Nf3 {[%clk 0:01:32.7]} 17... Nc6 {[%clk 0:01:21.5]} 18. Rd1
{[%clk 0:01:20.8]} 18... Qc8 {[%clk 0:01:12.1]} 19. Qg2 {[%clk 0:01:05.4]} 19...
Nd4 {[%clk 0:00:59.6]} 20. Nxd4 {[%clk 0:00:45.4]} 20... exd4 {[%clk 0:01:00.5]}
21. Bxd4 {[%clk 0:00:46.3]} 21... Bxd4 {[%clk 0:00:53.1]} 22. Rxd4 {[%clk
0:00:45]} 22... Qc5 {[%clk 0:00:52.8]} 23. Qd2 {[%clk 0:00:37.9]} 23... Rfe8
{[%clk 0:00:34.7]} 24. Rf1 {[%clk 0:00:26.7]} 24... Re5 {[%clk 0:00:24.7]} 25.
h4 {[%clk 0:00:16.1]} 25... Rae8 {[%clk 0:00:22.9]} 26. Rf4 {[%clk 0:00:16.7]}
26... R5e7 {[%clk 0:00:09.7]} 27. Qf2 {[%clk 0:00:15.5]} 27... Qc8 {[%clk
0:00:09.3]} 28. Qf3 {[%clk 0:00:11.3]} 28... Qa8 {[%clk 0:00:08.3]} 29. Kf2
{[%clk 0:00:10.3]} 29... Qa7 {[%clk 0:00:08.5]} 30. Qe3 {[%clk 0:00:09.6]} 30...
Qb8 {[%clk 0:00:08.3]} 31. Kg3 {[%clk 0:00:09]} 31... h6 {[%clk 0:00:07.1]} 32.
Qf2 {[%clk 0:00:08.6]} 32... hxg5 {[%clk 0:00:06.8]} 33. hxg5 {[%clk 0:00:09.5]}
33... Qe5 {[%clk 0:00:07]} 34. Kh4 {[%clk 0:00:08]} 34... Kg7 {[%clk 0:00:07]}
35. Kg3 {[%clk 0:00:05]} 35... Qxg5+ {[%clk 0:00:06.7]} 36. Kf3 {[%clk
0:00:05.3]} 36... Qh5+ {[%clk 0:00:06.4]} 37. Rg4 {[%clk 0:00:05.5]} 37... f5
{[%clk 0:00:05.6]} 38. Ke3 {[%clk 0:00:03.4]} 38... Qh4 {[%clk 0:00:05.5]} 39.
Rxh4 {[%clk 0:00:03.3]} 39... f4+ {[%clk 0:00:06]} 40. Qxf4 {[%clk 0:00:02.3]}
40... Rxe4+ {[%clk 0:00:06.9]} 41. Qxe4 {[%clk 0:00:02.5]} 41... Rxe4+ {[%clk
0:00:07.8]} 42. Rdxe4 {[%clk 0:00:03.4]} 42... Bxe4 {[%clk 0:00:07.5]} 43. Rxe4
{[%clk 0:00:04.3]} 43... g5 {[%clk 0:00:08.4]} 44. Rg4 {[%clk 0:00:04.2]} 44...
Kg6 {[%clk 0:00:09.3]} 45. Ne4 {[%clk 0:00:04.7]} 45... Kh5 {[%clk 0:00:10.2]}
46. Rxg5+ {[%clk 0:00:05.6]} 46... Kh4 {[%clk 0:00:11]} 47. Rg6 {[%clk
0:00:06.1]} 47... a5 {[%clk 0:00:11.2]} 48. Ra6 {[%clk 0:00:06.2]} 48... Kg4
{[%clk 0:00:12.1]} 49. Rxa5 {[%clk 0:00:06.4]} 49... c3 {[%clk 0:00:12.3]} 50.
bxc3 {[%clk 0:00:06.1]} 50... Kh4 {[%clk 0:00:13.2]} 51. Rb5 {[%clk 0:00:06.2]}
51... Kg4 {[%clk 0:00:14.1]} 52. a4 {[%clk 0:00:06.6]} 1-0

[Event "*** Titled Tuesday Blitz"]
[Site "Chess.com"]
[Date "2021.02.02"]
[Round "4"]
[White "arctic_t00"]
[Black "Twitch_ElhamBlitz05"]
[Result "0-1"]
[WhiteElo "2524"]
[BlackElo "2847"]
[TimeControl "180+1"]
[EndTime "10:42:54 PST"]
[Termination "Twitch_ElhamBlitz05 won by resignation"]

1. d4 {[%clk 0:03:00.9]} 1... Nf6 {[%clk 0:03:00]} 2. Nf3 {[%clk 0:03:00.6]}
2... g6 {[%clk 0:02:59.8]} 3. Nbd2 {[%clk 0:02:59.6]} 3... Bg7 {[%clk
0:02:58.8]} 4. e4 {[%clk 0:02:59.6]} 4... d6 {[%clk 0:02:59.7]} 5. Bb5+ {[%clk
0:02:59.9]} 5... c6 {[%clk 0:02:59.4]} 6. Bd3 {[%clk 0:03:00.4]} 6... O-O {[%clk
0:02:59.9]} 7. O-O {[%clk 0:03:00.9]} 7... Nbd7 {[%clk 0:02:58.7]} 8. c3 {[%clk
0:03:01.2]} 8... e5 {[%clk 0:02:58.8]} 9. h3 {[%clk 0:03:01.5]} 9... Qe7 {[%clk
0:02:58.7]} 10. Re1 {[%clk 0:03:01.4]} 10... Rd8 {[%clk 0:02:57.8]} 11. Qc2
{[%clk 0:03:00.7]} 11... Nh5 {[%clk 0:02:57.7]} 12. a4 {[%clk 0:02:51.3]} 12...
Nf4 {[%clk 0:02:57.3]} 13. Bf1 {[%clk 0:02:51.5]} 13... Nf6 {[%clk 0:02:52.3]}
14. a5 {[%clk 0:02:39]} 14... Ne8 {[%clk 0:02:16]} 15. Nc4 {[%clk 0:02:28.5]}
15... f6 {[%clk 0:02:10]} 16. dxe5 {[%clk 0:01:33.3]} 16... fxe5 {[%clk
0:02:05.2]} 17. Bxf4 {[%clk 0:01:12.6]} 17... exf4 {[%clk 0:02:06.1]} 18. Rad1
{[%clk 0:01:11.6]} 18... Be6 {[%clk 0:02:00.2]} 19. b4 {[%clk 0:01:00.5]} 19...
g5 {[%clk 0:01:49.6]} 20. Nd4 {[%clk 0:00:58.5]} 20... Nc7 {[%clk 0:01:17.5]}
21. Nd2 {[%clk 0:00:41.4]} 21... Bxd4 {[%clk 0:00:46.4]} 22. cxd4 {[%clk
0:00:40.8]} 22... Kh8 {[%clk 0:00:47]} 23. Bc4 {[%clk 0:00:33.1]} 23... Qf7
{[%clk 0:00:41.2]} 24. Bxe6 {[%clk 0:00:22]} 24... Nxe6 {[%clk 0:00:42.1]} 25.
Nf3 {[%clk 0:00:20.9]} 25... Qf6 {[%clk 0:00:40]} 26. e5 {[%clk 0:00:20.7]}
26... dxe5 {[%clk 0:00:40.9]} 27. dxe5 {[%clk 0:00:15.6]} 27... Qe7 {[%clk
0:00:36.9]} 28. Rd6 {[%clk 0:00:14]} 28... Rg8 {[%clk 0:00:17.2]} 29. Qf5 {[%clk
0:00:13]} 29... Rg6 {[%clk 0:00:11.2]} 30. Red1 {[%clk 0:00:11.7]} 30... Rf8
{[%clk 0:00:10.7]} 31. Qg4 {[%clk 0:00:10.4]} 31... Rf7 {[%clk 0:00:06.8]} 32.
Nd4 {[%clk 0:00:05.1]} 32... Nxd4 {[%clk 0:00:05.7]} 33. R1xd4 {[%clk 0:00:06]}
33... Qxe5 {[%clk 0:00:04.3]} 34. Rd8+ {[%clk 0:00:05.6]} 34... Kg7 {[%clk
0:00:04.6]} 35. Qh5 {[%clk 0:00:04.1]} 35... Qe1+ {[%clk 0:00:02.7]} 36. Kh2
{[%clk 0:00:04.7]} 36... Qe5 {[%clk 0:00:03.3]} 37. Qg4 {[%clk 0:00:03.7]} 37...
f3+ {[%clk 0:00:03.4]} 38. g3 {[%clk 0:00:03.7]} 38... Qe2 {[%clk 0:00:02.5]}
39. Rd2 {[%clk 0:00:02.2]} 39... Qe6 {[%clk 0:00:02.7]} 40. Qxe6 {[%clk
0:00:01.8]} 40... Rxe6 {[%clk 0:00:03.6]} 41. R8d7 {[%clk 0:00:02.7]} 41... Ree7
{[%clk 0:00:03.1]} 42. Rxe7 {[%clk 0:00:02.9]} 42... Rxe7 {[%clk 0:00:04]} 43.
Rd3 {[%clk 0:00:03.7]} 43... Rf7 {[%clk 0:00:03.2]} 44. g4 {[%clk 0:00:04.3]}
44... Rf4 {[%clk 0:00:02.3]} 45. Rb3 {[%clk 0:00:03.6]} 45... b6 {[%clk
0:00:01.8]} 46. Kg3 {[%clk 0:00:04.1]} 46... Kf6 {[%clk 0:00:01.5]} 47. axb6
{[%clk 0:00:03.9]} 47... axb6 {[%clk 0:00:02.4]} 48. h4 {[%clk 0:00:04.5]} 48...
h6 {[%clk 0:00:02.5]} 49. hxg5+ {[%clk 0:00:05.4]} 49... hxg5 {[%clk 0:00:03.4]}
50. Rxf3 {[%clk 0:00:05.1]} 50... Rxf3+ {[%clk 0:00:04.3]} 51. Kxf3 {[%clk
0:00:06]} 51... Ke5 {[%clk 0:00:05]} 52. Ke3 {[%clk 0:00:06.2]} 52... c5 {[%clk
0:00:05.7]} 53. bxc5 {[%clk 0:00:07.1]} 53... bxc5 {[%clk 0:00:06.6]} 54. f3
{[%clk 0:00:05.8]} 54... c4 {[%clk 0:00:06.6]} 55. Ke2 {[%clk 0:00:06.5]} 55...
Kf4 {[%clk 0:00:07.3]} 56. Kf2 {[%clk 0:00:05.9]} 56... c3 {[%clk 0:00:07.6]}
57. Ke2 {[%clk 0:00:06.8]} 57... c2 {[%clk 0:00:08.5]} 58. Kd2 {[%clk
0:00:07.7]} 58... Kxf3 {[%clk 0:00:09.4]} 59. Kxc2 {[%clk 0:00:08.1]} 59... Kxg4
{[%clk 0:00:10.3]} 60. Kd3 {[%clk 0:00:08.8]} 60... Kh3 {[%clk 0:00:11]} 61. Ke4
{[%clk 0:00:09.4]} 61... g4 {[%clk 0:00:11.5]} 62. Ke3 {[%clk 0:00:10.3]} 62...
g3 {[%clk 0:00:12.4]} 63. Ke2 {[%clk 0:00:11.2]} 63... Kh2 {[%clk 0:00:13.2]}
64. Kf3 {[%clk 0:00:12.1]} 64... g2 {[%clk 0:00:14.1]} 65. Kf4 {[%clk
0:00:12.5]} 65... g1=Q {[%clk 0:00:15]} 66. Kf5 {[%clk 0:00:13.4]} 66... Qg3
{[%clk 0:00:15.9]} 0-1